[Event "January 2 Late 2024"]
[Site "https://www.chess.com"]
[Date "2024.01.02"]
[Round "11"]
[White "Durarbayli, Vasif"]
[Black "Przybylski, Wojciech"]
[Result "1-0"]
[Board "53"]
[TimeControl "180+1"]
[WhiteFideId "13402935"]
[BlackFideId "1117599"]
[WhiteElo "2786"]
[BlackElo "2550"]
[WhiteTeam "AZE"]
[BlackTeam "POL"]
[WhiteClock "0:00:58"]
[BlackClock "0:00:00"]

1. e4 {[%clk 0:02:59]}  e5 {[%clk 0:02:56]} 2. Nc3 {[%clk 0:02:58]}  Nf6 {[%clk 0:02:56]} 3. d4 {[%clk 0:02:59]}  exd4 {[%clk 0:02:53]} 4. Qxd4 {[%clk 0:03:00]}  Nc6 {[%clk 0:02:52]} 5. Qd3 {[%clk 0:03:00]}  Bb4 {[%clk 0:02:48]} 6. Bd2 {[%clk 0:02:59]}  O-O {[%clk 0:02:48]} 7. O-O-O {[%clk 0:02:58]}  Re8 {[%clk 0:02:46]} 8. Nge2 {[%clk 0:02:58]}  d6 {[%clk 0:02:40]} 9. Bg5 {[%clk 0:02:57]}  Bxc3 {[%clk 0:02:36]} 10. Nxc3 {[%clk 0:02:56]}  h6 {[%clk 0:02:31]} 11. Bh4 {[%clk 0:02:56]}  Ne5 {[%clk 0:02:29]} 12. Qd2 {[%clk 0:02:56]}  Ng6 {[%clk 0:02:26]} 13. Bxf6 {[%clk 0:02:51]}  Qxf6 {[%clk 0:02:26]} 14. f3 {[%clk 0:02:52]}  Be6 {[%clk 0:02:19]} 15. Kb1 {[%clk 0:02:48]}  a6 {[%clk 0:02:19]} 16. Ne2 {[%clk 0:02:44]}  Rad8 {[%clk 0:02:13]} 17. Nd4 {[%clk 0:02:43]}  Bc8 {[%clk 0:02:10]} 18. Bc4 {[%clk 0:02:43]}  c6 {[%clk 0:02:08]} 19. Bb3 {[%clk 0:02:43]}  Nf4 {[%clk 0:01:50]} 20. Rhe1 {[%clk 0:02:41]}  Ng6 {[%clk 0:01:38]} 21. a3 {[%clk 0:02:40]}  Bd7 {[%clk 0:01:33]} 22. g4 {[%clk 0:02:34]}  Nf4 {[%clk 0:01:25]} 23. Nf5 {[%clk 0:02:32]}  Bxf5 {[%clk 0:01:22]} 24. gxf5 {[%clk 0:02:33]}  Qe5 {[%clk 0:01:17]} 25. Rg1 {[%clk 0:02:31]}  Kf8 {[%clk 0:01:01]} 26. Rg4 {[%clk 0:02:25]}  Nh5 {[%clk 0:00:59]} 27. Rdg1 {[%clk 0:02:25]}  d5 {[%clk 0:00:55]} 28. exd5 {[%clk 0:02:18]}  Qxf5 {[%clk 0:00:43]} 29. Qb4+ {[%clk 0:02:18]}  Kg8 {[%clk 0:00:32]} 30. dxc6 {[%clk 0:02:12]}  bxc6 {[%clk 0:00:31]} 31. Qc3 {[%clk 0:02:13]}  Qe5 {[%clk 0:00:26]} 32. Qxc6 {[%clk 0:02:11]}  Rd6 {[%clk 0:00:25]} 33. Qb7 {[%clk 0:02:02]}  Rf6 {[%clk 0:00:24]} 34. Re4 {[%clk 0:01:57]}  Qb8 {[%clk 0:00:20]} 35. Qxb8 {[%clk 0:01:36]}  Rxb8 {[%clk 0:00:20]} 36. Bc4 {[%clk 0:01:36]}  Nf4 {[%clk 0:00:17]} 37. Bxa6 {[%clk 0:01:30]}  Ne6 {[%clk 0:00:13]} 38. Be2 {[%clk 0:01:28]}  Ng5 {[%clk 0:00:12]} 39. Re3 {[%clk 0:01:27]}  Nh3 {[%clk 0:00:12]} 40. Re1 {[%clk 0:01:24]}  Nf4 {[%clk 0:00:11]} 41. Bf1 {[%clk 0:01:24]}  Kh7 {[%clk 0:00:11]} 42. a4 {[%clk 0:01:23]}  h5 {[%clk 0:00:11]} 43. Bb5 {[%clk 0:01:22]}  h4 {[%clk 0:00:11]} 44. c4 {[%clk 0:01:20]}  Ng2 {[%clk 0:00:10]} 45. R1e2 {[%clk 0:01:17]}  Nxe3 {[%clk 0:00:10]} 46. Rxe3 {[%clk 0:01:18]}  g5 {[%clk 0:00:10]} 47. a5 {[%clk 0:01:17]}  Kg6 {[%clk 0:00:09]} 48. a6 {[%clk 0:01:13]}  Rfb6 {[%clk 0:00:07]} 49. Kc2 {[%clk 0:01:08]}  f5 {[%clk 0:00:07]} 50. b4 {[%clk 0:01:02]}  g4 {[%clk 0:00:07]} 51. fxg4 {[%clk 0:01:03]}  fxg4 {[%clk 0:00:07]} 52. Kb3 {[%clk 0:01:00]}  Kg5 {[%clk 0:00:07]} 53. Ka4 {[%clk 0:00:59]}  Kf4 {[%clk 0:00:07]} 54. Re1 {[%clk 0:00:59]}  g3 {[%clk 0:00:07]} 55. hxg3+ {[%clk 0:01:00]}  hxg3 {[%clk 0:00:08]} 56. Ka5 {[%clk 0:01:01]}  g2 {[%clk 0:00:07]} 57. a7 {[%clk 0:01:00]}  Re6 {[%clk 0:00:04]} 58. axb8=Q+ {[%clk 0:00:58]}  Kf3 {[%clk 0:00:04]} 59. Rxe6 {[%clk 0:00:57]}  g1=Q {[%clk 0:00:03]} 60. Qf8+ {[%clk 0:00:58]}  Kg2 {[%clk 0:00:03]} 61. Rg6+ {[%clk 0:00:59]}  Kh3 {[%clk 0:00:00]} 62. Bd7+ {[%clk 0:00:58]} 1-0

[Event "January 2 Late 2024"]
[Site "https://www.chess.com"]
[Date "2024.01.02"]
[Round "11"]
[White "Annaberdiyev, Meylis"]
[Black "Osmak, Yuliia"]
[Result "1-0"]
[Board "59"]
[TimeControl "180+1"]
[WhiteFideId "14000563"]
[BlackFideId "14101602"]
[WhiteElo "2666"]
[BlackElo "2521"]
[WhiteTeam "TKM"]
[BlackTeam "UKR"]
[WhiteClock "0:00:30"]
[BlackClock "0:00:00"]

1. e4 {[%clk 0:03:00]}  c5 {[%clk 0:02:59]} 2. Nc3 {[%clk 0:02:59]}  a6 {[%clk 0:02:56]} 3. f4 {[%clk 0:02:58]}  b5 {[%clk 0:02:56]} 4. g3 {[%clk 0:02:58]}  Bb7 {[%clk 0:02:56]} 5. Bg2 {[%clk 0:02:57]}  e6 {[%clk 0:02:55]} 6. d3 {[%clk 0:02:56]}  Nf6 {[%clk 0:02:54]} 7. Nh3 {[%clk 0:02:52]}  d5 {[%clk 0:02:53]} 8. e5 {[%clk 0:02:51]}  Nfd7 {[%clk 0:02:52]} 9. O-O {[%clk 0:02:50]}  b4 {[%clk 0:02:52]} 10. Ne2 {[%clk 0:02:49]}  Nc6 {[%clk 0:02:52]} 11. c3 {[%clk 0:02:28]}  Be7 {[%clk 0:02:51]} 12. d4 {[%clk 0:02:27]}  a5 {[%clk 0:02:50]} 13. f5 {[%clk 0:02:24]}  exf5 {[%clk 0:02:19]} 14. Bxd5 {[%clk 0:02:17]}  Nb6 {[%clk 0:02:12]} 15. Bg2 {[%clk 0:02:17]}  bxc3 {[%clk 0:02:07]} 16. bxc3 {[%clk 0:02:16]}  cxd4 {[%clk 0:02:07]} 17. cxd4 {[%clk 0:02:16]}  g6 {[%clk 0:02:04]} 18. Rb1 {[%clk 0:02:15]}  O-O {[%clk 0:01:59]} 19. Bh6 {[%clk 0:02:06]}  Re8 {[%clk 0:01:57]} 20. e6 {[%clk 0:01:49]}  fxe6 {[%clk 0:01:48]} 21. Qb3 {[%clk 0:01:46]}  Bb4 {[%clk 0:01:45]} 22. a3 {[%clk 0:01:45]}  a4 {[%clk 0:01:26]} 23. Qa2 {[%clk 0:01:18]}  Bf8 {[%clk 0:01:15]} 24. Bxf8 {[%clk 0:01:15]}  Kxf8 {[%clk 0:01:16]} 25. Nhf4 {[%clk 0:01:08]}  Kf7 {[%clk 0:00:46]} 26. d5 {[%clk 0:01:05]}  exd5 {[%clk 0:00:44]} 27. Nxd5 {[%clk 0:00:58]}  Nxd5 {[%clk 0:00:28]} 28. Bxd5+ {[%clk 0:00:54]}  Kf8 {[%clk 0:00:26]} 29. Rxb7 {[%clk 0:00:54]}  Rxe2 {[%clk 0:00:25]} 30. Rf7+ {[%clk 0:00:53]}  Kg8 {[%clk 0:00:23]} 31. Rd7+ {[%clk 0:00:51]}  Kf8 {[%clk 0:00:15]} 32. Rf7+ {[%clk 0:00:45]}  Kg8 {[%clk 0:00:14]} 33. Rd7+ {[%clk 0:00:45]}  Kf8 {[%clk 0:00:15]} 34. Rxd8+ {[%clk 0:00:45]}  Rxd8 {[%clk 0:00:12]} 35. Qxe2 {[%clk 0:00:46]}  Rxd5 {[%clk 0:00:09]} 36. Rc1 {[%clk 0:00:44]}  Nd4 {[%clk 0:00:08]} 37. Rc8+ {[%clk 0:00:43]}  Kg7 {[%clk 0:00:08]} 38. Rc7+ {[%clk 0:00:42]}  Kh6 {[%clk 0:00:07]} 39. Qd2+ {[%clk 0:00:35]}  g5 {[%clk 0:00:06]} 40. Kg2 {[%clk 0:00:35]}  Nc2 {[%clk 0:00:02]} 41. Rc6+ {[%clk 0:00:32]}  Kh5 {[%clk 0:00:01]} 42. Qe2+ {[%clk 0:00:31]}  g4 {[%clk 0:00:00]} 43. Rxc2 {[%clk 0:00:30]} 1-0

[Event "January 2 Late 2024"]
[Site "https://www.chess.com"]
[Date "2024.01.02"]
[Round "11"]
[White "Ozates, Tuna"]
[Black "Sukandar, Irine Kharisma"]
[Result "1-0"]
[Board "63"]
[TimeControl "180+1"]
[WhiteFideId "6354521"]
[BlackFideId "7101937"]
[WhiteElo "2629"]
[BlackElo "2488"]
[WhiteTeam "TUR"]
[BlackTeam "INA"]
[WhiteClock "0:01:26"]
[BlackClock "0:01:21"]

1. e4 {[%clk 0:03:00]}  c5 {[%clk 0:02:59]} 2. Nf3 {[%clk 0:03:00]}  Nc6 {[%clk 0:02:59]} 3. Bb5 {[%clk 0:02:59]}  e5 {[%clk 0:02:59]} 4. O-O {[%clk 0:02:58]}  Nge7 {[%clk 0:02:59]} 5. c3 {[%clk 0:02:56]}  g6 {[%clk 0:02:52]} 6. d4 {[%clk 0:02:56]}  exd4 {[%clk 0:02:52]} 7. cxd4 {[%clk 0:02:57]}  cxd4 {[%clk 0:02:52]} 8. Bf4 {[%clk 0:02:54]}  Bg7 {[%clk 0:02:52]} 9. Bd6 {[%clk 0:02:42]}  O-O {[%clk 0:02:50]} 10. e5 {[%clk 0:02:40]}  Re8 {[%clk 0:02:48]} 11. Bc4 {[%clk 0:02:39]}  Nf5 {[%clk 0:02:45]} 12. Re1 {[%clk 0:02:11]}  a6 {[%clk 0:02:16]} 13. Nbd2 {[%clk 0:02:02]}  b5 {[%clk 0:02:12]} 14. Bd5 {[%clk 0:02:02]}  Nxd6 {[%clk 0:02:12]} 15. exd6 {[%clk 0:02:01]}  Bb7 {[%clk 0:02:12]} 16. Ne4 {[%clk 0:01:58]}  Qb6 {[%clk 0:02:05]} 17. Bxf7+ {[%clk 0:01:47]}  Kxf7 {[%clk 0:02:01]} 18. Qb3+ {[%clk 0:01:46]}  Re6 {[%clk 0:01:49]} 19. Neg5+ {[%clk 0:01:28]}  Kg8 {[%clk 0:01:21]} 20. Rxe6 {[%clk 0:01:26]} 1-0

[Event "January 2 Late 2024"]
[Site "https://www.chess.com"]
[Date "2024.01.02"]
[Round "11"]
[White "Rama, Tejas"]
[Black "Rodriguez Avila, Alvaro"]
[Result "1-0"]
[Board "70"]
[TimeControl "180+1"]
[WhiteFideId "30907381"]
[BlackFideId "24570249"]
[WhiteElo "2567"]
[BlackElo "2337"]
[WhiteTeam "USA"]
[BlackTeam "ESP"]
[WhiteClock "0:00:16"]
[BlackClock "0:00:17"]

1. d4 {[%clk 0:02:56]}  Nf6 {[%clk 0:02:59]} 2. c4 {[%clk 0:02:55]}  Nc6 {[%clk 0:02:59]} 3. d5 {[%clk 0:02:49]}  Ne5 {[%clk 0:02:59]} 4. b3 {[%clk 0:02:43]}  e6 {[%clk 0:02:57]} 5. Nf3 {[%clk 0:02:12]}  Nxf3+ {[%clk 0:02:55]} 6. gxf3 {[%clk 0:02:06]}  exd5 {[%clk 0:02:52]} 7. cxd5 {[%clk 0:02:06]}  Bb4+ {[%clk 0:02:51]} 8. Bd2 {[%clk 0:02:04]}  Bxd2+ {[%clk 0:02:52]} 9. Qxd2 {[%clk 0:02:04]}  d6 {[%clk 0:02:51]} 10. Rg1 {[%clk 0:02:00]}  g6 {[%clk 0:02:46]} 11. Nc3 {[%clk 0:01:57]}  Qe7 {[%clk 0:02:44]} 12. Rc1 {[%clk 0:01:47]}  Bd7 {[%clk 0:02:19]} 13. Qd4 {[%clk 0:01:41]}  Qe5 {[%clk 0:02:10]} 14. Qxe5+ {[%clk 0:01:27]}  dxe5 {[%clk 0:02:10]} 15. e3 {[%clk 0:01:16]}  O-O {[%clk 0:02:08]} 16. Bc4 {[%clk 0:01:04]}  Rac8 {[%clk 0:01:56]} 17. Ke2 {[%clk 0:01:01]}  c6 {[%clk 0:01:56]} 18. Rgd1 {[%clk 0:00:58]}  cxd5 {[%clk 0:01:53]} 19. Nxd5 {[%clk 0:00:59]}  Nxd5 {[%clk 0:01:50]} 20. Bxd5 {[%clk 0:00:56]}  Bb5+ {[%clk 0:01:49]} 21. Ke1 {[%clk 0:00:56]}  Ba6 {[%clk 0:01:47]} 22. Be4 {[%clk 0:00:47]}  Rxc1 {[%clk 0:01:07]} 23. Rxc1 {[%clk 0:00:46]}  Rb8 {[%clk 0:00:50]} 24. Rc7 {[%clk 0:00:45]}  Kf8 {[%clk 0:00:48]} 25. Bd5 {[%clk 0:00:44]}  Rd8 {[%clk 0:00:44]} 26. Bxf7 {[%clk 0:00:37]}  Rd6 {[%clk 0:00:29]} 27. Bc4 {[%clk 0:00:22]}  Bxc4 {[%clk 0:00:23]} 28. bxc4 {[%clk 0:00:23]}  Rb6 {[%clk 0:00:23]} 29. Rxh7 {[%clk 0:00:21]}  Rb2 {[%clk 0:00:23]} 30. a3 {[%clk 0:00:20]}  b6 {[%clk 0:00:23]} 31. Rxa7 {[%clk 0:00:19]}  Rb1+ {[%clk 0:00:21]} 32. Ke2 {[%clk 0:00:19]}  Rb2+ {[%clk 0:00:22]} 33. Kf1 {[%clk 0:00:20]}  Rc2 {[%clk 0:00:21]} 34. Ra6 {[%clk 0:00:19]}  Rb2 {[%clk 0:00:22]} 35. Ra7 {[%clk 0:00:17]}  Rc2 {[%clk 0:00:21]} 36. Rb7 {[%clk 0:00:17]}  Rxc4 {[%clk 0:00:17]} 37. Rxb6 {[%clk 0:00:18]}  Ra4 {[%clk 0:00:17]} 38. Rxg6 {[%clk 0:00:16]} 1-0

[Event "January 2 Late 2024"]
[Site "https://www.chess.com"]
[Date "2024.01.02"]
[Round "11"]
[White "Toktomushev, Teimur"]
[Black "Schnaider, Ilan"]
[Result "1-0"]
[Board "71"]
[TimeControl "180+1"]
[WhiteFideId "14176726"]
[BlackFideId "169013"]
[WhiteElo "2474"]
[BlackElo "2700"]
[WhiteTeam "UKR"]
[BlackTeam "ARG"]
[WhiteClock "0:00:05"]
[BlackClock "0:00:09"]

1. d4 {[%clk 0:03:00]}  Nf6 {[%clk 0:02:59]} 2. c4 {[%clk 0:03:00]}  g6 {[%clk 0:03:00]} 3. Nc3 {[%clk 0:03:00]}  d5 {[%clk 0:03:00]} 4. cxd5 {[%clk 0:03:01]}  Nxd5 {[%clk 0:03:01]} 5. e4 {[%clk 0:03:02]}  Nxc3 {[%clk 0:03:01]} 6. bxc3 {[%clk 0:03:03]}  Bg7 {[%clk 0:03:02]} 7. Be3 {[%clk 0:03:04]}  c5 {[%clk 0:03:02]} 8. Qd2 {[%clk 0:03:04]}  O-O {[%clk 0:03:02]} 9. Nf3 {[%clk 0:03:04]}  cxd4 {[%clk 0:03:03]} 10. cxd4 {[%clk 0:03:05]}  Bg4 {[%clk 0:03:03]} 11. Rc1 {[%clk 0:03:05]}  Nc6 {[%clk 0:03:03]} 12. d5 {[%clk 0:03:05]}  Bxf3 {[%clk 0:03:02]} 13. gxf3 {[%clk 0:03:06]}  Ne5 {[%clk 0:03:02]} 14. Be2 {[%clk 0:03:06]}  Rc8 {[%clk 0:03:01]} 15. O-O {[%clk 0:03:05]}  Qd7 {[%clk 0:03:00]} 16. Kg2 {[%clk 0:03:03]}  h6 {[%clk 0:02:56]} 17. Bxh6 {[%clk 0:02:30]}  Bxh6 {[%clk 0:02:25]} 18. Qxh6 {[%clk 0:02:30]}  Rxc1 {[%clk 0:02:25]} 19. Rxc1 {[%clk 0:02:29]}  Rc8 {[%clk 0:02:26]} 20. Rxc8+ {[%clk 0:01:14]}  Qxc8 {[%clk 0:02:27]} 21. f4 {[%clk 0:00:46]}  Ng4 {[%clk 0:02:24]} 22. Qg5 {[%clk 0:00:39]}  Nf6 {[%clk 0:02:24]} 23. Bf3 {[%clk 0:00:32]}  Qd7 {[%clk 0:02:17]} 24. d6 {[%clk 0:00:09]}  Kg7 {[%clk 0:01:46]} 25. e5 {[%clk 0:00:08]}  Ng8 {[%clk 0:01:43]} 26. dxe7 {[%clk 0:00:07]}  Nxe7 {[%clk 0:01:43]} 27. Qf6+ {[%clk 0:00:07]}  Kg8 {[%clk 0:01:44]} 28. h4 {[%clk 0:00:04]}  Nd5 {[%clk 0:01:43]} 29. Qd6 {[%clk 0:00:04]}  Nxf4+ {[%clk 0:01:43]} 30. Kg3 {[%clk 0:00:03]}  Qf5 {[%clk 0:01:36]} 31. Qd8+ {[%clk 0:00:02]}  Kh7 {[%clk 0:01:36]} 32. Qf6 {[%clk 0:00:03]}  Qxf6 {[%clk 0:00:57]} 33. exf6 {[%clk 0:00:03]}  Nd3 {[%clk 0:00:58]} 34. Bxb7 {[%clk 0:00:03]}  Nc5 {[%clk 0:00:59]} 35. Bd5 {[%clk 0:00:03]}  Kg8 {[%clk 0:00:59]} 36. Kf4 {[%clk 0:00:02]}  Nd3+ {[%clk 0:00:59]} 37. Ke3 {[%clk 0:00:02]}  Ne5 {[%clk 0:00:59]} 38. f4 {[%clk 0:00:02]}  Ng4+ {[%clk 0:01:00]} 39. Kd4 {[%clk 0:00:02]}  Nxf6 {[%clk 0:01:00]} 40. Bf3 {[%clk 0:00:02]}  Kg7 {[%clk 0:01:00]} 41. Kc5 {[%clk 0:00:03]}  Nh7 {[%clk 0:00:46]} 42. a4 {[%clk 0:00:03]}  Nf8 {[%clk 0:00:46]} 43. Kc6 {[%clk 0:00:03]}  Ne6 {[%clk 0:00:46]} 44. Kb7 {[%clk 0:00:02]}  a5 {[%clk 0:00:47]} 45. Ka6 {[%clk 0:00:02]}  Nd4 {[%clk 0:00:44]} 46. Be4 {[%clk 0:00:01]}  Nb3 {[%clk 0:00:44]} 47. Bd5 {[%clk 0:00:02]}  Nc5+ {[%clk 0:00:38]} 48. Kxa5 {[%clk 0:00:02]}  Nd3 {[%clk 0:00:38]} 49. Kb6 {[%clk 0:00:01]}  Nxf4 {[%clk 0:00:39]} 50. Bf3 {[%clk 0:00:02]}  Nd3 {[%clk 0:00:38]} 51. a5 {[%clk 0:00:02]}  Ne5 {[%clk 0:00:39]} 52. a6 {[%clk 0:00:02]}  Nxf3 {[%clk 0:00:16]} 53. a7 {[%clk 0:00:02]}  Nxh4 {[%clk 0:00:17]} 54. a8=Q {[%clk 0:00:03]}  Nf5 {[%clk 0:00:18]} 55. Qa1+ {[%clk 0:00:03]}  Kh6 {[%clk 0:00:18]} 56. Kc6 {[%clk 0:00:04]}  Kg5 {[%clk 0:00:19]} 57. Kd5 {[%clk 0:00:04]}  Ne7+ {[%clk 0:00:18]} 58. Ke5 {[%clk 0:00:04]}  Ng8 {[%clk 0:00:06]} 59. Qg1+ {[%clk 0:00:03]}  Kh6 {[%clk 0:00:07]} 60. Kd6 {[%clk 0:00:03]}  Kg7 {[%clk 0:00:05]} 61. Qd4+ {[%clk 0:00:04]}  Kh7 {[%clk 0:00:03]} 62. Kd7 {[%clk 0:00:04]}  f5 {[%clk 0:00:02]} 63. Ke8 {[%clk 0:00:03]}  g5 {[%clk 0:00:01]} 64. Kf7 {[%clk 0:00:02]}  Kh6 {[%clk 0:00:01]} 65. Kxg8 {[%clk 0:00:02]}  Kh5 {[%clk 0:00:02]} 66. Kg7 {[%clk 0:00:02]}  f4 {[%clk 0:00:03]} 67. Kf6 {[%clk 0:00:03]}  Kg4 {[%clk 0:00:04]} 68. Qe5 {[%clk 0:00:03]}  Kf3 {[%clk 0:00:04]} 69. Qxg5 {[%clk 0:00:04]}  Ke3 {[%clk 0:00:05]} 70. Ke5 {[%clk 0:00:04]}  Kf3 {[%clk 0:00:06]} 71. Qxf4+ {[%clk 0:00:04]}  Ke2 {[%clk 0:00:07]} 72. Ke4 {[%clk 0:00:04]}  Ke1 {[%clk 0:00:07]} 73. Qh2 {[%clk 0:00:05]}  Kf1 {[%clk 0:00:08]} 74. Ke3 {[%clk 0:00:04]}  Ke1 {[%clk 0:00:09]} 75. Qg1# {[%clk 0:00:05]} 1-0

[Event "January 2 Late 2024"]
[Site "https://www.chess.com"]
[Date "2024.01.02"]
[Round "11"]
[White "Bhavikatti, Neil"]
[Black "Lewtak, Damian"]
[Result "1/2-1/2"]
[Board "72"]
[TimeControl "180+1"]
[WhiteFideId "30935024"]
[BlackFideId "1141724"]
[WhiteElo "2472"]
[BlackElo "2691"]
[WhiteTeam "USA"]
[BlackTeam "POL"]
[WhiteClock "0:00:09"]
[BlackClock "0:00:40"]

1. d4 {[%clk 0:03:00]}  Nf6 {[%clk 0:02:59]} 2. c4 {[%clk 0:03:01]}  e6 {[%clk 0:02:59]} 3. Nc3 {[%clk 0:03:02]}  a6 {[%clk 0:02:58]} 4. e4 {[%clk 0:03:00]}  Bb4 {[%clk 0:02:57]} 5. e5 {[%clk 0:02:59]}  Ne4 {[%clk 0:02:57]} 6. Qc2 {[%clk 0:02:59]}  Nxc3 {[%clk 0:02:57]} 7. bxc3 {[%clk 0:03:00]}  Be7 {[%clk 0:02:57]} 8. Bd3 {[%clk 0:02:58]}  h6 {[%clk 0:02:56]} 9. f4 {[%clk 0:02:55]}  d6 {[%clk 0:02:54]} 10. Nf3 {[%clk 0:02:54]}  c5 {[%clk 0:02:53]} 11. O-O {[%clk 0:02:50]}  cxd4 {[%clk 0:02:52]} 12. cxd4 {[%clk 0:02:50]}  dxe5 {[%clk 0:02:52]} 13. fxe5 {[%clk 0:02:48]}  Bd7 {[%clk 0:02:52]} 14. d5 {[%clk 0:02:42]}  Bc5+ {[%clk 0:02:48]} 15. Kh1 {[%clk 0:02:42]}  Qe7 {[%clk 0:02:48]} 16. Rb1 {[%clk 0:02:35]}  b6 {[%clk 0:02:49]} 17. Be4 {[%clk 0:02:28]}  Ra7 {[%clk 0:02:48]} 18. Bb2 {[%clk 0:01:58]}  O-O {[%clk 0:02:43]} 19. d6 {[%clk 0:01:43]}  Qd8 {[%clk 0:02:42]} 20. Bd4 {[%clk 0:01:43]}  Bc6 {[%clk 0:02:37]} 21. Bxc5 {[%clk 0:01:40]}  bxc5 {[%clk 0:02:38]} 22. Rxb8 {[%clk 0:00:56]}  Bxe4 {[%clk 0:02:37]} 23. Rxd8 {[%clk 0:00:57]}  Bxc2 {[%clk 0:02:37]} 24. Rxf8+ {[%clk 0:00:58]}  Kxf8 {[%clk 0:02:37]} 25. Rc1 {[%clk 0:00:57]}  Bf5 {[%clk 0:02:31]} 26. Nd2 {[%clk 0:00:48]}  f6 {[%clk 0:02:08]} 27. Nb3 {[%clk 0:00:46]}  fxe5 {[%clk 0:02:06]} 28. Nxc5 {[%clk 0:00:47]}  Ra8 {[%clk 0:01:56]} 29. Nd7+ {[%clk 0:00:43]}  Kf7 {[%clk 0:01:56]} 30. Nb6 {[%clk 0:00:44]}  Rd8 {[%clk 0:01:53]} 31. c5 {[%clk 0:00:44]}  Be4 {[%clk 0:01:51]} 32. c6 {[%clk 0:00:37]}  Rxd6 {[%clk 0:01:48]} 33. c7 {[%clk 0:00:38]}  Bb7 {[%clk 0:01:46]} 34. c8=Q {[%clk 0:00:38]}  Bxc8 {[%clk 0:01:46]} 35. Nxc8 {[%clk 0:00:39]}  Rd2 {[%clk 0:01:46]} 36. Kg1 {[%clk 0:00:36]}  Rxa2 {[%clk 0:01:44]} 37. Nd6+ {[%clk 0:00:36]}  Kf6 {[%clk 0:01:43]} 38. Rf1+ {[%clk 0:00:34]}  Kg6 {[%clk 0:01:42]} 39. Nc4 {[%clk 0:00:32]}  Re2 {[%clk 0:01:41]} 40. Ra1 {[%clk 0:00:30]}  Re4 {[%clk 0:01:38]} 41. Nd2 {[%clk 0:00:30]}  Re2 {[%clk 0:01:37]} 42. Nb3 {[%clk 0:00:27]}  e4 {[%clk 0:01:34]} 43. Rxa6 {[%clk 0:00:26]}  e3 {[%clk 0:01:35]} 44. Ra1 {[%clk 0:00:25]}  e5 {[%clk 0:01:31]} 45. Nc5 {[%clk 0:00:23]}  Rc2 {[%clk 0:01:28]} 46. Nd3 {[%clk 0:00:20]}  Kf5 {[%clk 0:01:25]} 47. Re1 {[%clk 0:00:04]}  Ke4 {[%clk 0:01:21]} 48. Nc1 {[%clk 0:00:05]}  h5 {[%clk 0:01:17]} 49. h3 {[%clk 0:00:05]}  g5 {[%clk 0:01:16]} 50. Ne2 {[%clk 0:00:05]}  h4 {[%clk 0:01:13]} 51. Kf1 {[%clk 0:00:05]}  Rc8 {[%clk 0:01:01]} 52. Ra1 {[%clk 0:00:05]}  Rc4 {[%clk 0:00:58]} 53. Ke1 {[%clk 0:00:04]}  Rb4 {[%clk 0:00:58]} 54. Nc3+ {[%clk 0:00:03]}  Kd3 {[%clk 0:00:58]} 55. Ne2 {[%clk 0:00:04]}  Rc4 {[%clk 0:00:53]} 56. Rd1+ {[%clk 0:00:04]}  Ke4 {[%clk 0:00:53]} 57. Ng1 {[%clk 0:00:04]}  Kf4 {[%clk 0:00:51]} 58. Ne2+ {[%clk 0:00:03]}  Kf5 {[%clk 0:00:49]} 59. Ra1 {[%clk 0:00:03]}  Rb4 {[%clk 0:00:47]} 60. Rc1 {[%clk 0:00:02]}  Rb2 {[%clk 0:00:42]} 61. Rd1 {[%clk 0:00:01]}  g4 {[%clk 0:00:41]} 62. hxg4+ {[%clk 0:00:01]}  Kxg4 {[%clk 0:00:42]} 63. Ra1 {[%clk 0:00:01]}  h3 {[%clk 0:00:41]} 64. Ra4+ {[%clk 0:00:02]}  Kf5 {[%clk 0:00:40]} 65. gxh3 {[%clk 0:00:03]}  Rb1+ {[%clk 0:00:40]} 66. Nc1 {[%clk 0:00:02]}  Rxc1+ {[%clk 0:00:40]} 67. Ke2 {[%clk 0:00:03]}  Rh1 {[%clk 0:00:41]} 68. Kxe3 {[%clk 0:00:03]}  Rxh3+ {[%clk 0:00:41]} 69. Ke2 {[%clk 0:00:04]}  e4 {[%clk 0:00:41]} 70. Ra8 {[%clk 0:00:04]}  Rh2+ {[%clk 0:00:37]} 71. Ke3 {[%clk 0:00:04]}  Rh3+ {[%clk 0:00:38]} 72. Ke2 {[%clk 0:00:04]}  Rb3 {[%clk 0:00:39]} 73. Rf8+ {[%clk 0:00:03]}  Ke5 {[%clk 0:00:40]} 74. Re8+ {[%clk 0:00:04]}  Kd5 {[%clk 0:00:40]} 75. Rd8+ {[%clk 0:00:05]}  Kc6 {[%clk 0:00:39]} 76. Re8 {[%clk 0:00:06]}  Rb4 {[%clk 0:00:39]} 77. Ke3 {[%clk 0:00:06]}  Kd5 {[%clk 0:00:40]} 78. Rd8+ {[%clk 0:00:06]}  Ke5 {[%clk 0:00:40]} 79. Re8+ {[%clk 0:00:07]}  Kf5 {[%clk 0:00:39]} 80. Rf8+ {[%clk 0:00:08]}  Kg6 {[%clk 0:00:40]} 81. Re8 {[%clk 0:00:09]}  Kf6 {[%clk 0:00:40]} 82. Rxe4 {[%clk 0:00:09]}  Rxe4+ {[%clk 0:00:40]} 83. Kxe4 {[%clk 0:00:09]} 1/2-1/2

[Event "January 2 Late 2024"]
[Site "https://www.chess.com"]
[Date "2024.01.02"]
[Round "11"]
[White "Travkina, Anastasia"]
[Black "Banzea, Alexandru-Bogdan"]
[Result "0-1"]
[Board "73"]
[TimeControl "180+1"]
[WhiteFideId "24129151"]
[BlackFideId "1232622"]
[WhiteElo "2453"]
[BlackElo "2653"]
[WhiteTeam "RUS"]
[BlackTeam "ROU"]
[WhiteClock "0:00:02"]
[BlackClock "0:00:22"]

1. e4 {[%clk 0:03:00]}  c6 {[%clk 0:02:57]} 2. d4 {[%clk 0:03:00]}  d5 {[%clk 0:02:58]} 3. Nc3 {[%clk 0:03:01]}  dxe4 {[%clk 0:02:57]} 4. Nxe4 {[%clk 0:03:02]}  Nf6 {[%clk 0:02:58]} 5. Nxf6+ {[%clk 0:03:02]}  exf6 {[%clk 0:02:59]} 6. c3 {[%clk 0:03:03]}  Bd6 {[%clk 0:02:59]} 7. Bd3 {[%clk 0:03:03]}  O-O {[%clk 0:03:00]} 8. Qc2 {[%clk 0:03:04]}  Re8+ {[%clk 0:03:01]} 9. Ne2 {[%clk 0:03:04]}  h6 {[%clk 0:03:01]} 10. Be3 {[%clk 0:03:03]}  Nd7 {[%clk 0:03:02]} 11. O-O-O {[%clk 0:03:01]}  f5 {[%clk 0:03:02]} 12. Bxf5 {[%clk 0:02:57]}  Nf6 {[%clk 0:03:02]} 13. Ng3 {[%clk 0:02:48]}  Bxg3 {[%clk 0:03:01]} 14. hxg3 {[%clk 0:02:48]}  Qd5 {[%clk 0:03:00]} 15. Bxc8 {[%clk 0:02:45]}  Raxc8 {[%clk 0:02:59]} 16. Kb1 {[%clk 0:02:41]}  Qxg2 {[%clk 0:02:58]} 17. Rdg1 {[%clk 0:02:39]}  Qf3 {[%clk 0:02:42]} 18. g4 {[%clk 0:02:34]}  Nxg4 {[%clk 0:02:06]} 19. Bxh6 {[%clk 0:02:16]}  Nxh6 {[%clk 0:01:15]} 20. Rxh6 {[%clk 0:01:59]}  Qe4 {[%clk 0:01:15]} 21. Qxe4 {[%clk 0:01:12]}  Rxe4 {[%clk 0:01:16]} 22. Rd6 {[%clk 0:01:13]}  Rce8 {[%clk 0:01:09]} 23. Rd7 {[%clk 0:00:29]}  R4e7 {[%clk 0:01:09]} 24. Rxe7 {[%clk 0:00:25]}  Rxe7 {[%clk 0:01:10]} 25. Rg2 {[%clk 0:00:22]}  Re2 {[%clk 0:01:09]} 26. a4 {[%clk 0:00:22]}  f5 {[%clk 0:01:05]} 27. Ka2 {[%clk 0:00:22]}  Kf7 {[%clk 0:01:04]} 28. Kb3 {[%clk 0:00:20]}  Kf6 {[%clk 0:01:03]} 29. c4 {[%clk 0:00:21]}  g5 {[%clk 0:00:59]} 30. Kc3 {[%clk 0:00:21]}  f4 {[%clk 0:00:52]} 31. b4 {[%clk 0:00:21]}  Kf5 {[%clk 0:00:50]} 32. b5 {[%clk 0:00:17]}  g4 {[%clk 0:00:46]} 33. a5 {[%clk 0:00:15]}  cxb5 {[%clk 0:00:42]} 34. cxb5 {[%clk 0:00:12]}  g3 {[%clk 0:00:42]} 35. Kd3 {[%clk 0:00:09]}  Rxf2 {[%clk 0:00:34]} 36. Rg1 {[%clk 0:00:07]}  g2 {[%clk 0:00:32]} 37. d5 {[%clk 0:00:07]}  f3 {[%clk 0:00:31]} 38. d6 {[%clk 0:00:07]}  Rf1 {[%clk 0:00:26]} 39. d7 {[%clk 0:00:05]}  Rxg1 {[%clk 0:00:26]} 40. Kc2 {[%clk 0:00:02]}  Rd1 {[%clk 0:00:22]} 0-1